[Event "*** Titled Tuesday Blitz"]
[Site "Chess.com"]
[Date "2021.03.09"]
[Round "3"]
[White "Politov_Pavel"]
[Black "garicradomir"]
[Result "1-0"]
[WhiteElo "2423"]
[BlackElo "2222"]
[TimeControl "180+1"]
[EndTime "10:29:47 PST"]
[Termination "Politov_Pavel won on time"]

1. d4 {[%clk 0:03:00.9]} 1... Nf6 {[%clk 0:02:59.6]} 2. c4 {[%clk 0:03:00.4]}
2... Nc6 {[%clk 0:03:00.1]} 3. d5 {[%clk 0:03:00]} 3... Ne5 {[%clk 0:03:00.1]}
4. b3 {[%clk 0:02:52.5]} 4... e6 {[%clk 0:03:00]} 5. dxe6 {[%clk 0:02:50.9]}
5... fxe6 {[%clk 0:02:59.5]} 6. Bb2 {[%clk 0:02:48]} 6... Bb4+ {[%clk
0:02:59.5]} 7. Nc3 {[%clk 0:02:38.7]} 7... O-O {[%clk 0:02:58.4]} 8. a3 {[%clk
0:02:36.2]} 8... Be7 {[%clk 0:02:52.9]} 9. Nf3 {[%clk 0:02:30.4]} 9... Nxf3+
{[%clk 0:02:46]} 10. exf3 {[%clk 0:02:30.8]} 10... b6 {[%clk 0:02:46.3]} 11. Bd3
{[%clk 0:02:30.5]} 11... Bb7 {[%clk 0:02:45.5]} 12. O-O {[%clk 0:02:31.1]} 12...
Qe8 {[%clk 0:02:21.6]} 13. Re1 {[%clk 0:02:17.7]} 13... a6 {[%clk 0:02:20.9]}
14. Qd2 {[%clk 0:02:17.2]} 14... Qh5 {[%clk 0:02:19.6]} 15. Rad1 {[%clk
0:02:17.1]} 15... Rad8 {[%clk 0:02:14.2]} 16. Ne4 {[%clk 0:02:09.8]} 16... Nxe4
{[%clk 0:01:56.7]} 17. Bxe4 {[%clk 0:02:10.7]} 17... d5 {[%clk 0:01:56]} 18.
Bxd5 {[%clk 0:01:55.6]} 18... Bxd5 {[%clk 0:01:48.6]} 19. cxd5 {[%clk
0:01:55.1]} 19... Rxd5 {[%clk 0:01:48.5]} 20. Qe3 {[%clk 0:01:44.3]} 20... Rxd1
{[%clk 0:01:29.1]} 21. Rxd1 {[%clk 0:01:45.2]} 21... Qf5 {[%clk 0:01:26.1]} 22.
Re1 {[%clk 0:01:33.5]} 22... Bf6 {[%clk 0:01:18.1]} 23. g4 {[%clk 0:01:29.7]}
23... Qd5 {[%clk 0:01:14.9]} 24. Bxf6 {[%clk 0:01:22.4]} 24... Rxf6 {[%clk
0:01:14.6]} 25. Kg2 {[%clk 0:01:22.8]} 25... Kf7 {[%clk 0:01:11.9]} 26. h4
{[%clk 0:01:20.5]} 26... h5 {[%clk 0:01:05.1]} 27. g5 {[%clk 0:01:20]} 27... Rf5
{[%clk 0:01:04.2]} 28. b4 {[%clk 0:01:15]} 28... Ke7 {[%clk 0:00:49.3]} 29. Rc1
{[%clk 0:01:05.1]} 29... Kd7 {[%clk 0:00:37.9]} 30. Rc3 {[%clk 0:00:57.4]} 30...
Kc8 {[%clk 0:00:30.4]} 31. Rd3 {[%clk 0:00:54.6]} 31... Qc6 {[%clk 0:00:30.4]}
32. Rc3 {[%clk 0:00:53.7]} 32... Qd5 {[%clk 0:00:28.5]} 33. Qxb6 {[%clk
0:00:49]} 33... Qxf3+ {[%clk 0:00:18.9]} 34. Rxf3 {[%clk 0:00:49.5]} 34... cxb6
{[%clk 0:00:19.4]} 35. Rxf5 {[%clk 0:00:42.4]} 35... exf5 {[%clk 0:00:19.4]} 36.
Kg3 {[%clk 0:00:43]} 36... Kd7 {[%clk 0:00:16.9]} 37. Kf4 {[%clk 0:00:38.2]}
37... Ke6 {[%clk 0:00:16.5]} 38. g6 {[%clk 0:00:35.6]} 38... Kf6 {[%clk
0:00:16]} 39. a4 {[%clk 0:00:35]} 39... b5 {[%clk 0:00:09.2]} 40. a5 {[%clk
0:00:34]} 40... Kxg6 {[%clk 0:00:08.6]} 41. Ke5 {[%clk 0:00:34.6]} 41... f4
{[%clk 0:00:08.8]} 42. Kxf4 {[%clk 0:00:34.5]} 42... Kf6 {[%clk 0:00:08.4]} 43.
Kg3 {[%clk 0:00:06.3]} 43... Kf5 {[%clk 0:00:03.2]} 44. f3 {[%clk 0:00:05.3]}
44... g6 {[%clk 0:00:01.6]} 45. Kg2 {[%clk 0:00:04.3]} 1-0

[Event "*** Titled Tuesday Blitz"]
[Site "Chess.com"]
[Date "2021.03.09"]
[Round "3"]
[White "stepakyedael"]
[Black "gatocorbis"]
[Result "0-1"]
[WhiteElo "2305"]
[BlackElo "2109"]
[TimeControl "180+1"]
[EndTime "10:29:48 PST"]
[Termination "gatocorbis won on time"]

1. d4 {[%clk 0:03:00.9]} 1... Nf6 {[%clk 0:02:59]} 2. c4 {[%clk 0:03:00.7]} 2...
c5 {[%clk 0:02:58.3]} 3. d5 {[%clk 0:03:00.1]} 3... b5 {[%clk 0:02:57.7]} 4.
cxb5 {[%clk 0:03:00.3]} 4... a6 {[%clk 0:02:57.3]} 5. b6 {[%clk 0:03:00.9]} 5...
Qxb6 {[%clk 0:02:55.3]} 6. Nc3 {[%clk 0:03:01.2]} 6... d6 {[%clk 0:02:55.2]} 7.
e4 {[%clk 0:03:01.2]} 7... g6 {[%clk 0:02:55]} 8. Nf3 {[%clk 0:03:01.3]} 8...
Bg7 {[%clk 0:02:54.6]} 9. Nd2 {[%clk 0:03:01.3]} 9... Nbd7 {[%clk 0:02:52.7]}
10. Nc4 {[%clk 0:02:56.5]} 10... Qc7 {[%clk 0:02:52.1]} 11. a4 {[%clk
0:02:54.3]} 11... O-O {[%clk 0:02:50.9]} 12. a5 {[%clk 0:02:53.3]} 12... Rb8
{[%clk 0:02:45.2]} 13. Be2 {[%clk 0:02:52]} 13... Ne5 {[%clk 0:02:42]} 14. Nxe5
{[%clk 0:02:44.7]} 14... dxe5 {[%clk 0:02:40.8]} 15. O-O {[%clk 0:02:44.4]}
15... Ne8 {[%clk 0:02:39.1]} 16. Qc2 {[%clk 0:02:39]} 16... Nd6 {[%clk
0:02:36.7]} 17. f3 {[%clk 0:02:33.1]} 17... Qa7 {[%clk 0:02:23]} 18. Be3 {[%clk
0:02:30.3]} 18... Bd7 {[%clk 0:02:16]} 19. Rfb1 {[%clk 0:02:22.5]} 19... Qb7
{[%clk 0:01:58.6]} 20. Bxc5 {[%clk 0:02:15.2]} 20... Rfc8 {[%clk 0:01:57.2]} 21.
Bb6 {[%clk 0:02:09.2]} 21... Nc4 {[%clk 0:01:49.8]} 22. Bxc4 {[%clk 0:01:59.1]}
22... Rxc4 {[%clk 0:01:48.6]} 23. Qd3 {[%clk 0:01:56.9]} 23... Rbc8 {[%clk
0:01:43.3]} 24. Rc1 {[%clk 0:01:50.5]} 24... Bh6 {[%clk 0:01:32.9]} 25. Rd1
{[%clk 0:01:44.5]} 25... Rb4 {[%clk 0:01:11.9]} 26. Rab1 {[%clk 0:01:32.9]}
26... Bb5 {[%clk 0:01:09.7]} 27. Nxb5 {[%clk 0:01:24.5]} 27... Rxb5 {[%clk
0:01:08.9]} 28. b4 {[%clk 0:01:16]} 28... Rxb6 {[%clk 0:01:08.1]} 29. axb6
{[%clk 0:01:15.1]} 29... Qxb6+ {[%clk 0:01:07.7]} 30. Kh1 {[%clk 0:01:15]} 30...
Qf2 {[%clk 0:00:58.4]} 31. Qf1 {[%clk 0:01:11.1]} 31... Qb6 {[%clk 0:00:52.1]}
32. Qe2 {[%clk 0:00:59.7]} 32... Rc3 {[%clk 0:00:41.8]} 33. Qb2 {[%clk
0:00:51.1]} 33... Qc7 {[%clk 0:00:23.4]} 34. b5 {[%clk 0:00:44.4]} 34... axb5
{[%clk 0:00:22.3]} 35. Qxb5 {[%clk 0:00:44.1]} 35... Kg7 {[%clk 0:00:22.3]} 36.
h3 {[%clk 0:00:35.4]} 36... Rc2 {[%clk 0:00:19.6]} 37. Qd3 {[%clk 0:00:32.8]}
37... Rc3 {[%clk 0:00:17.2]} 38. Qb5 {[%clk 0:00:27.9]} 38... Qc8 {[%clk
0:00:15]} 39. Qf1 {[%clk 0:00:22.1]} 39... Rc2 {[%clk 0:00:11.5]} 40. d6 {[%clk
0:00:19]} 40... exd6 {[%clk 0:00:09.5]} 41. Rxd6 {[%clk 0:00:18.5]} 41... Be3
{[%clk 0:00:07.9]} 42. Rdd1 {[%clk 0:00:11.6]} 42... Bf4 {[%clk 0:00:04.3]} 43.
Qd3 {[%clk 0:00:03]} 43... Qc7 {[%clk 0:00:01.7]} 0-1

[Event "*** Titled Tuesday Blitz"]
[Site "Chess.com"]
[Date "2021.03.09"]
[Round "3"]
[White "shaheus"]
[Black "norwaytoadog"]
[Result "1-0"]
[WhiteElo "2407"]
[BlackElo "2203"]
[TimeControl "180+1"]
[EndTime "10:29:53 PST"]
[Termination "shaheus won on time"]

1. e4 {[%clk 0:03:00.9]} 1... c5 {[%clk 0:02:58.7]} 2. Nf3 {[%clk 0:03:01]} 2...
d6 {[%clk 0:02:58.9]} 3. c3 {[%clk 0:03:01.3]} 3... Nf6 {[%clk 0:02:58.5]} 4.
Qb3 {[%clk 0:03:01.5]} 4... e6 {[%clk 0:02:49.7]} 5. d3 {[%clk 0:03:00.9]} 5...
Be7 {[%clk 0:02:46.5]} 6. g3 {[%clk 0:03:01]} 6... Nc6 {[%clk 0:02:46.6]} 7. Bg2
{[%clk 0:03:00.7]} 7... O-O {[%clk 0:02:46.7]} 8. O-O {[%clk 0:03:00.6]} 8...
Rb8 {[%clk 0:02:45]} 9. a4 {[%clk 0:02:59.6]} 9... a6 {[%clk 0:02:42.5]} 10. Re1
{[%clk 0:02:58.5]} 10... e5 {[%clk 0:02:36.6]} 11. Nbd2 {[%clk 0:02:54]} 11...
b5 {[%clk 0:02:31.3]} 12. axb5 {[%clk 0:02:53.8]} 12... axb5 {[%clk 0:02:30.5]}
13. Nf1 {[%clk 0:02:51.5]} 13... Be6 {[%clk 0:02:21.3]} 14. Qc2 {[%clk
0:02:50.9]} 14... b4 {[%clk 0:02:16.4]} 15. N3d2 {[%clk 0:02:44.2]} 15... Qb6
{[%clk 0:02:07.5]} 16. Ne3 {[%clk 0:02:42.4]} 16... Ra8 {[%clk 0:01:59.6]} 17.
Rxa8 {[%clk 0:02:35.2]} 17... Rxa8 {[%clk 0:01:59]} 18. Nd5 {[%clk 0:02:35.3]}
18... Qb7 {[%clk 0:01:13.6]} 19. Nc4 {[%clk 0:02:27.9]} 19... Ra1 {[%clk
0:01:09.2]} 20. Bd2 {[%clk 0:02:19.9]} 20... Rxe1+ {[%clk 0:01:01.4]} 21. Bxe1
{[%clk 0:02:19.4]} 21... Bxd5 {[%clk 0:00:55.5]} 22. exd5 {[%clk 0:02:18.2]}
22... Nb8 {[%clk 0:00:53.6]} 23. Na5 {[%clk 0:01:57.3]} 23... Qa8 {[%clk
0:00:37.1]} 24. cxb4 {[%clk 0:01:51.2]} 24... Bd8 {[%clk 0:00:34.1]} 25. Nc6
{[%clk 0:01:47.5]} 25... Qa1 {[%clk 0:00:27.7]} 26. Kf1 {[%clk 0:01:29.9]} 26...
Nxc6 {[%clk 0:00:26]} 27. dxc6 {[%clk 0:01:30.1]} 27... Bc7 {[%clk 0:00:22.2]}
28. bxc5 {[%clk 0:01:27.7]} 28... d5 {[%clk 0:00:22.3]} 29. Qb3 {[%clk
0:01:17.4]} 29... g6 {[%clk 0:00:20]} 30. Bxd5 {[%clk 0:01:10]} 30... Ba5 {[%clk
0:00:19.7]} 31. Qb8+ {[%clk 0:00:38.2]} 31... Kg7 {[%clk 0:00:19.9]} 32. Qxe5
{[%clk 0:00:37.9]} 32... Bxe1 {[%clk 0:00:17.5]} 33. Qxe1 {[%clk 0:00:27.6]}
33... Qxe1+ {[%clk 0:00:16.7]} 34. Kxe1 {[%clk 0:00:27.7]} 34... Nxd5 {[%clk
0:00:17.1]} 35. Kd2 {[%clk 0:00:21.8]} 35... Kf8 {[%clk 0:00:17.4]} 36. d4
{[%clk 0:00:22.2]} 36... Ke7 {[%clk 0:00:17.7]} 37. Kd3 {[%clk 0:00:22.7]} 37...
Kd8 {[%clk 0:00:17.7]} 38. Kc4 {[%clk 0:00:23]} 38... Nf6 {[%clk 0:00:16.3]} 39.
d5 {[%clk 0:00:21.7]} 39... Kc7 {[%clk 0:00:16.8]} 40. f3 {[%clk 0:00:20.7]}
40... g5 {[%clk 0:00:15.5]} 41. b4 {[%clk 0:00:19.3]} 41... g4 {[%clk
0:00:15.3]} 42. fxg4 {[%clk 0:00:18.3]} 42... Nxg4 {[%clk 0:00:14.9]} 43. b5
{[%clk 0:00:18.5]} 43... Ne3+ {[%clk 0:00:15]} 44. Kd4 {[%clk 0:00:18]} 44...
Nc2+ {[%clk 0:00:15]} 45. Kc3 {[%clk 0:00:17]} 45... Ne3 {[%clk 0:00:14.8]} 46.
d6+ {[%clk 0:00:17.3]} 46... Kc8 {[%clk 0:00:13.6]} 47. Kd4 {[%clk 0:00:17.7]}
47... Nc2+ {[%clk 0:00:10.5]} 48. Ke5 {[%clk 0:00:16.3]} 48... Nb4 {[%clk
0:00:10.1]} 49. d7+ {[%clk 0:00:15.2]} 49... Kd8 {[%clk 0:00:10.2]} 50. Kd6
{[%clk 0:00:15]} 1-0

[Event "*** Titled Tuesday Blitz"]
[Site "Chess.com"]
[Date "2021.03.09"]
[Round "3"]
[White "dolynachess"]
[Black "louis198"]
[Result "1-0"]
[WhiteElo "2431"]
[BlackElo "2593"]
[TimeControl "180+1"]
[EndTime "10:29:55 PST"]
[Termination "dolynachess won by checkmate"]

1. d4 {[%clk 0:01:33]} 1... e6 {[%clk 0:03:00.4]} 2. c4 {[%clk 0:01:32.4]} 2...
d5 {[%clk 0:03:00.4]} 3. g3 {[%clk 0:01:32.5]} 3... g6 {[%clk 0:02:57.8]} 4. Bg2
{[%clk 0:01:33.4]} 4... Bg7 {[%clk 0:02:58]} 5. Nf3 {[%clk 0:01:34.3]} 5... Ne7
{[%clk 0:02:58.3]} 6. O-O {[%clk 0:01:34.9]} 6... O-O {[%clk 0:02:58.8]} 7. Qd3
{[%clk 0:01:32.1]} 7... Nbc6 {[%clk 0:02:58.2]} 8. Nc3 {[%clk 0:01:31.8]} 8...
Nf5 {[%clk 0:02:57.6]} 9. e3 {[%clk 0:01:27]} 9... Nce7 {[%clk 0:02:56.4]} 10.
b4 {[%clk 0:01:22.2]} 10... c6 {[%clk 0:02:56]} 11. a4 {[%clk 0:01:21.9]} 11...
Nd6 {[%clk 0:02:55.1]} 12. Nd2 {[%clk 0:01:20.3]} 12... Nef5 {[%clk 0:02:52.8]}
13. Ba3 {[%clk 0:01:19.5]} 13... a5 {[%clk 0:02:38.2]} 14. b5 {[%clk 0:01:18.8]}
14... h5 {[%clk 0:02:27.5]} 15. h4 {[%clk 0:01:14.8]} 15... Bh6 {[%clk
0:02:26.6]} 16. Rac1 {[%clk 0:01:09.7]} 16... Bd7 {[%clk 0:02:02.9]} 17. Rc2
{[%clk 0:01:03.3]} 17... Re8 {[%clk 0:02:02.2]} 18. e4 {[%clk 0:00:53.7]} 18...
dxe4 {[%clk 0:01:47.3]} 19. Ndxe4 {[%clk 0:00:54.6]} 19... Nxe4 {[%clk
0:01:47.4]} 20. Nxe4 {[%clk 0:00:55.5]} 20... Bg7 {[%clk 0:01:47.7]} 21. Bb2
{[%clk 0:00:53.3]} 21... Qc7 {[%clk 0:01:42.4]} 22. Rd1 {[%clk 0:00:40.5]} 22...
Rad8 {[%clk 0:01:42.4]} 23. d5 {[%clk 0:00:20]} 23... e5 {[%clk 0:01:42.2]} 24.
d6 {[%clk 0:00:18.6]} 24... Qc8 {[%clk 0:01:41.8]} 25. c5 {[%clk 0:00:18.1]}
25... Nd4 {[%clk 0:01:41.1]} 26. Bxd4 {[%clk 0:00:16.2]} 26... exd4 {[%clk
0:01:41.6]} 27. b6 {[%clk 0:00:16.8]} 27... Re5 {[%clk 0:01:38.5]} 28. Re2
{[%clk 0:00:16.7]} 28... Rde8 {[%clk 0:01:38.1]} 29. Rde1 {[%clk 0:00:17.1]}
29... Bf5 {[%clk 0:01:36.9]} 30. Qd2 {[%clk 0:00:14.5]} 30... Bxe4 {[%clk
0:01:34.6]} 31. Rxe4 {[%clk 0:00:14.1]} 31... Rxe4 {[%clk 0:01:34.2]} 32. Rxe4
{[%clk 0:00:15]} 32... Rxe4 {[%clk 0:01:28.2]} 33. Bxe4 {[%clk 0:00:15.9]} 33...
f5 {[%clk 0:01:28.6]} 34. Bf3 {[%clk 0:00:15]} 34... Bf6 {[%clk 0:01:27.9]} 35.
Kg2 {[%clk 0:00:14.8]} 35... Kg7 {[%clk 0:01:27]} 36. Qxa5 {[%clk 0:00:14.8]}
36... Qd7 {[%clk 0:01:21]} 37. Qa8 {[%clk 0:00:13]} 37... d3 {[%clk 0:01:20]}
38. Qb8 {[%clk 0:00:12.6]} 38... Bd8 {[%clk 0:01:13.6]} 39. a5 {[%clk
0:00:11.8]} 39... f4 {[%clk 0:01:10.2]} 40. gxf4 {[%clk 0:00:09.5]} 40... d2
{[%clk 0:01:10]} 41. a6 {[%clk 0:00:09.2]} 41... bxa6 {[%clk 0:01:10]} 42. b7
{[%clk 0:00:09.5]} 42... Qg4+ {[%clk 0:00:36.5]} 43. Bxg4 {[%clk 0:00:08]} 43...
hxg4 {[%clk 0:00:36.8]} 44. Qxd8 {[%clk 0:00:08.4]} 44... d1=Q {[%clk
0:00:36.9]} 45. Qe7+ {[%clk 0:00:08.3]} 45... Kh6 {[%clk 0:00:36.4]} 46. Qg5+
{[%clk 0:00:08.1]} 46... Kg7 {[%clk 0:00:36.4]} 47. Qe7+ {[%clk 0:00:08.2]}
47... Kh6 {[%clk 0:00:36.7]} 48. Qe3 {[%clk 0:00:08.6]} 48... Qb1 {[%clk
0:00:31.2]} 49. d7 {[%clk 0:00:08.6]} 49... Qd1 {[%clk 0:00:22.1]} 50. b8=Q
{[%clk 0:00:07]} 50... Qd5+ {[%clk 0:00:23]} 51. Kg3 {[%clk 0:00:06.2]} 51...
Qh1 {[%clk 0:00:23.3]} 52. f5+ {[%clk 0:00:06]} 52... Kg7 {[%clk 0:00:22.2]} 53.
Qe7+ {[%clk 0:00:05.1]} 53... Kh6 {[%clk 0:00:22.4]} 54. Qh8# {[%clk 0:00:05.7]}
1-0

[Event "*** Titled Tuesday Blitz"]
[Site "Chess.com"]
[Date "2021.03.09"]
[Round "3"]
[White "InitiatingASC"]
[Black "VladaSviridova"]
[Result "1-0"]
[WhiteElo "2439"]
[BlackElo "2214"]
[TimeControl "180+1"]
[EndTime "10:29:55 PST"]
[Termination "InitiatingASC won on time"]

1. d4 {[%clk 0:03:00.9]} 1... d5 {[%clk 0:03:00]} 2. c4 {[%clk 0:02:59.6]} 2...
c6 {[%clk 0:03:00.3]} 3. Nf3 {[%clk 0:02:59.1]} 3... Nf6 {[%clk 0:03:00.6]} 4.
Nc3 {[%clk 0:02:58.6]} 4... dxc4 {[%clk 0:03:00.4]} 5. a4 {[%clk 0:02:57.2]}
5... Bf5 {[%clk 0:03:00.5]} 6. e3 {[%clk 0:02:56.3]} 6... e6 {[%clk 0:03:00.6]}
7. Bxc4 {[%clk 0:02:56.5]} 7... Bb4 {[%clk 0:03:01.3]} 8. O-O {[%clk 0:02:56.5]}
8... O-O {[%clk 0:03:01.5]} 9. Ne5 {[%clk 0:02:53.2]} 9... Nbd7 {[%clk
0:02:57.1]} 10. Qb3 {[%clk 0:02:50.8]} 10... Qb6 {[%clk 0:02:42.4]} 11. Rd1
{[%clk 0:02:45.9]} 11... Rad8 {[%clk 0:02:17.9]} 12. f4 {[%clk 0:02:29.4]} 12...
Bxc3 {[%clk 0:01:11]} 13. bxc3 {[%clk 0:02:19.7]} 13... Qxb3 {[%clk 0:01:03.4]}
14. Bxb3 {[%clk 0:02:17.7]} 14... Nxe5 {[%clk 0:01:03.5]} 15. fxe5 {[%clk
0:02:10.4]} 15... Ne4 {[%clk 0:01:01.3]} 16. c4 {[%clk 0:02:05.5]} 16... a5
{[%clk 0:00:43.4]} 17. Ba3 {[%clk 0:02:05]} 17... Rfe8 {[%clk 0:00:43.3]} 18.
Ra2 {[%clk 0:02:05.2]} 18... Nc3 {[%clk 0:00:41]} 19. Rb2 {[%clk 0:02:01.2]}
19... Nxd1 {[%clk 0:00:40.9]} 20. Bxd1 {[%clk 0:02:02.1]} 20... Rd7 {[%clk
0:00:39]} 21. Bd6 {[%clk 0:01:55.8]} 21... Be4 {[%clk 0:00:30.9]} 22. Kf2 {[%clk
0:01:49.8]} 22... f6 {[%clk 0:00:30.5]} 23. Bf3 {[%clk 0:01:41.8]} 23... Bxf3
{[%clk 0:00:27.5]} 24. gxf3 {[%clk 0:01:42.1]} 24... fxe5 {[%clk 0:00:27.7]} 25.
Bxe5 {[%clk 0:01:42.6]} 25... Rf7 {[%clk 0:00:25.2]} 26. h4 {[%clk 0:01:41]}
26... h5 {[%clk 0:00:24.7]} 27. f4 {[%clk 0:01:41.1]} 27... Kh7 {[%clk
0:00:24.8]} 28. Kf3 {[%clk 0:01:41.5]} 28... g6 {[%clk 0:00:24.9]} 29. Ke4
{[%clk 0:01:40.5]} 29... Rc8 {[%clk 0:00:23.6]} 30. Bd6 {[%clk 0:01:24.5]} 30...
Rd7 {[%clk 0:00:21.2]} 31. Ke5 {[%clk 0:01:22.8]} 31... Re8 {[%clk 0:00:20.6]}
32. c5 {[%clk 0:01:17.7]} 32... Kg7 {[%clk 0:00:20.2]} 33. Rg2 {[%clk
0:01:14.4]} 33... Kf7 {[%clk 0:00:20.6]} 34. e4 {[%clk 0:01:14.3]} 34... Red8
{[%clk 0:00:20.2]} 35. Rg5 {[%clk 0:01:09.1]} 35... b5 {[%clk 0:00:17.6]} 36. f5
{[%clk 0:01:05.5]} 36... exf5 {[%clk 0:00:17.1]} 37. exf5 {[%clk 0:01:05.4]}
37... gxf5 {[%clk 0:00:17.1]} 38. Rxh5 {[%clk 0:01:03.6]} 38... Kg6 {[%clk
0:00:15.6]} 39. Rg5+ {[%clk 0:01:03.5]} 39... Kh6 {[%clk 0:00:15.9]} 40. axb5
{[%clk 0:01:01.2]} 40... Re8+ {[%clk 0:00:15.5]} 41. Kxf5 {[%clk 0:01:01.2]}
41... cxb5 {[%clk 0:00:15.3]} 42. Rg6+ {[%clk 0:00:59.4]} 42... Kh7 {[%clk
0:00:15.6]} 43. c6 {[%clk 0:00:58.9]} 43... Rf7+ {[%clk 0:00:15.5]} 44. Kg5
{[%clk 0:00:58.2]} 44... b4 {[%clk 0:00:14.9]} 45. d5 {[%clk 0:00:50.3]} 45...
b3 {[%clk 0:00:14.6]} 46. Ba3 {[%clk 0:00:41.9]} 46... Re5+ {[%clk 0:00:14.2]}
47. Kg4 {[%clk 0:00:42.1]} 47... Kxg6 {[%clk 0:00:14.6]} 48. d6 {[%clk
0:00:38.9]} 48... Re4+ {[%clk 0:00:11.7]} 49. Kg3 {[%clk 0:00:39]} 49... Rf8
{[%clk 0:00:07.2]} 50. d7 {[%clk 0:00:36]} 50... Rd8 {[%clk 0:00:06.6]} 51. c7
{[%clk 0:00:36.2]} 51... Rxd7 {[%clk 0:00:05.4]} 52. c8=Q {[%clk 0:00:36.5]}
52... Rd3+ {[%clk 0:00:05.4]} 53. Kf2 {[%clk 0:00:36.9]} 53... Rd2+ {[%clk
0:00:04.9]} 54. Kf3 {[%clk 0:00:36.4]} 54... Red4 {[%clk 0:00:05.1]} 55. Qc6+
{[%clk 0:00:32.6]} 55... Kh7 {[%clk 0:00:03.7]} 56. Qb7+ {[%clk 0:00:29.8]}
56... Rd7 {[%clk 0:00:03.7]} 57. Qe4+ {[%clk 0:00:28.6]} 57... Kg8 {[%clk
0:00:03.3]} 58. Qg6+ {[%clk 0:00:27.8]} 58... Kh8 {[%clk 0:00:01.8]} 59. Bb2+
{[%clk 0:00:25.5]} 1-0

[Event "*** Titled Tuesday Blitz"]
[Site "Chess.com"]
[Date "2021.03.09"]
[Round "3"]
[White "ChessSwole"]
[Black "KetiGrant"]
[Result "1-0"]
[WhiteElo "2541"]
[BlackElo "2351"]
[TimeControl "180+1"]
[EndTime "10:29:56 PST"]
[Termination "ChessSwole won on time"]

1. e4 {[%clk 0:03:00.9]} 1... c5 {[%clk 0:02:59.2]} 2. Nf3 {[%clk 0:03:00.6]}
2... Nc6 {[%clk 0:02:59.2]} 3. Bb5 {[%clk 0:02:59.2]} 3... g6 {[%clk 0:02:58.7]}
4. Bxc6 {[%clk 0:02:54.7]} 4... dxc6 {[%clk 0:02:59.6]} 5. Nc3 {[%clk
0:02:40.6]} 5... Bg7 {[%clk 0:02:59.6]} 6. h3 {[%clk 0:02:38.7]} 6... e5 {[%clk
0:02:56.3]} 7. d3 {[%clk 0:02:38.4]} 7... Qe7 {[%clk 0:02:53.8]} 8. Be3 {[%clk
0:02:36.2]} 8... Nf6 {[%clk 0:02:53.6]} 9. Qd2 {[%clk 0:02:35.5]} 9... h6 {[%clk
0:02:51.7]} 10. O-O-O {[%clk 0:02:34.3]} 10... Nd7 {[%clk 0:02:44.1]} 11. Kb1
{[%clk 0:02:28.6]} 11... Nf8 {[%clk 0:02:35.6]} 12. g3 {[%clk 0:02:25.2]} 12...
Ne6 {[%clk 0:02:33.3]} 13. Nh2 {[%clk 0:02:24.8]} 13... g5 {[%clk 0:02:19.9]}
14. h4 {[%clk 0:02:16.8]} 14... Bd7 {[%clk 0:02:16.1]} 15. hxg5 {[%clk
0:02:10.6]} 15... hxg5 {[%clk 0:02:15.4]} 16. Ng4 {[%clk 0:02:10.1]} 16... O-O-O
{[%clk 0:02:12.9]} 17. f3 {[%clk 0:02:07.9]} 17... f6 {[%clk 0:01:53.2]} 18. Qg2
{[%clk 0:02:04.8]} 18... Nd4 {[%clk 0:01:51]} 19. Rxh8 {[%clk 0:02:00]} 19...
Rxh8 {[%clk 0:01:47.6]} 20. Rh1 {[%clk 0:01:59.6]} 20... Qd8 {[%clk 0:01:41.9]}
21. Nd1 {[%clk 0:01:55.3]} 21... f5 {[%clk 0:01:20.4]} 22. exf5 {[%clk
0:01:48.5]} 22... Bxf5 {[%clk 0:01:20.3]} 23. Ndf2 {[%clk 0:01:44.1]} 23... c4
{[%clk 0:01:12.7]} 24. Bxd4 {[%clk 0:01:43.4]} 24... Qxd4 {[%clk 0:00:55.1]} 25.
Rxh8+ {[%clk 0:01:35.5]} 25... Bxh8 {[%clk 0:00:56]} 26. Qh1 {[%clk 0:00:48]}
26... Bg7 {[%clk 0:00:40.3]} 27. Qd1 {[%clk 0:00:46.9]} 27... cxd3 {[%clk
0:00:31.6]} 28. Nxd3 {[%clk 0:00:17]} 28... Bxd3 {[%clk 0:00:21.2]} 29. cxd3
{[%clk 0:00:17.9]} 29... e4 {[%clk 0:00:21.2]} 30. Qd2 {[%clk 0:00:17.7]} 30...
exd3 {[%clk 0:00:16.8]} 31. Nf2 {[%clk 0:00:18]} 31... Be5 {[%clk 0:00:14.2]}
32. Nxd3 {[%clk 0:00:14.1]} 32... Bxg3 {[%clk 0:00:14]} 33. Qe2 {[%clk
0:00:14.7]} 33... Kd7 {[%clk 0:00:12.2]} 34. Kc2 {[%clk 0:00:14.8]} 34... Bd6
{[%clk 0:00:10.7]} 35. Qg2 {[%clk 0:00:15.1]} 35... Qc4+ {[%clk 0:00:10]} 36.
Kd2 {[%clk 0:00:15.5]} 36... Bf4+ {[%clk 0:00:09.1]} 37. Nxf4 {[%clk 0:00:15.3]}
37... Qxf4+ {[%clk 0:00:10]} 38. Kc2 {[%clk 0:00:15.5]} 38... Qf5+ {[%clk
0:00:09.7]} 39. Kc1 {[%clk 0:00:15.1]} 39... Qf4+ {[%clk 0:00:09.6]} 40. Kc2
{[%clk 0:00:14.8]} 40... Kd6 {[%clk 0:00:09.8]} 41. a3 {[%clk 0:00:13.9]} 41...
Qf5+ {[%clk 0:00:09.3]} 42. Kc1 {[%clk 0:00:13.9]} 42... Qf4+ {[%clk 0:00:09.2]}
43. Kb1 {[%clk 0:00:14.4]} 43... Kd5 {[%clk 0:00:08.8]} 44. Qe2 {[%clk
0:00:13.5]} 44... Qf5+ {[%clk 0:00:07.5]} 45. Ka2 {[%clk 0:00:14.1]} 45... Qe6
{[%clk 0:00:06.4]} 46. Qd3+ {[%clk 0:00:13.3]} 46... Ke5+ {[%clk 0:00:06.1]} 47.
Ka1 {[%clk 0:00:13.9]} 47... Qd5 {[%clk 0:00:05.1]} 48. Qe3+ {[%clk 0:00:13.9]}
48... Kf5 {[%clk 0:00:05]} 49. Qxa7 {[%clk 0:00:12.4]} 49... Qxf3 {[%clk
0:00:04.1]} 50. Qxb7 {[%clk 0:00:13.1]} 50... g4 {[%clk 0:00:03.9]} 51. Qf7+
{[%clk 0:00:13.1]} 51... Ke4 {[%clk 0:00:03.2]} 52. Qe6+ {[%clk 0:00:13.7]}
52... Kf4 {[%clk 0:00:02.6]} 53. Qd6+ {[%clk 0:00:13.3]} 53... Ke3 {[%clk
0:00:01.7]} 54. Qe5+ {[%clk 0:00:13.9]} 54... Kf2 {[%clk 0:00:01.4]} 55. Qh2+
{[%clk 0:00:14.5]} 1-0